[Event "SixDays IM March 2024"]
[Site "Budapest"]
[Date "2024.03.30"]
[Round "1.1"]
[White "Radzimski, Antoni"]
[Black "Hesham, Abdelrahman"]
[Result "0-1"]
[ECO "D35"]
[WhiteElo "2197"]
[BlackElo "2366"]
[Annotator "RC"]
[PlyCount "110"]
[EventDate "2024.03.26"]
[EventType "tourn"]
[EventCountry "HUN"]
[SourceTitle "playchess.com"]
[Source "ChessBase"]
[SourceQuality "1"]
[TimeControl "5400+30"]

1. d4 {[%emt 0:00:03]} d5 {[%emt 0:12:09]} 2. c4 {[%emt 0:00:07]} e6 {[%emt 0:00:07]} 3. Nc3 {[%emt 0:00:05]} Nf6 {[%emt 0:00:08]} 4. cxd5 {[%emt 0:00:05]} exd5 {[%emt 0:00:06]} 5. Bg5 {[%emt 0:00:06]} c6 {[%emt 0:00:08]} 6. e3 {[%emt 0:00:09]} h6 {[%emt 0:00:08]} 7. Bh4 {[%emt 0:00:05]} Be7 {[%emt 0:00:07]} 8. Bd3 {[%emt 0:00:04]} O-O {[%emt 0:00:08]} 9. Qc2 {[%emt 0:00:13]} Nh5 {[%emt 0:09:28]} 10. Bxe7 {[%emt 0:00:15]} Qxe7 {[%emt 0:00:07]} 11. Nge2 {[%emt 0:00:35]} Nf6 {[%emt 0:08:00]} 12. O-O {[%emt 0:00:22]} Re8 {[%emt 0:02:37]} 13. a3 {[%emt 0:00:49]} Nbd7 {[%emt 0:01:45]} 14. b4 {[%emt 0:01:33]} Nb6 {[%emt 0:05:34]} 15. Rab1 {[%emt 0:08:06]} Nc4 {[%emt 0:03:50]} 16. Bxc4 {[%emt 0:07:21]} dxc4 {[%emt 0:01:35]} 17. Ng3 {[%emt 0:05:41]} h5 {[%emt 0:14:09]} 18. Rfe1 {[%emt 0:05:08]} h4 {[%emt 0:05:29]} 19. Nf5 {[%emt 0:02:40]} Bxf5 {[%emt 0:00:40]} 20. Qxf5 {[%emt 0:00:03]} Rad8 {[%emt 0:00:34]} 21. h3 {[%emt 0:10:56]} b5 {[%emt 0:08:16]} 22. a4 {[%emt 0:04:59]} a5 {[%emt 0:03:41]} 23. Qc5 {[%emt 0:07:41]} Qxc5 {[%emt 0:05:22]} 24. dxc5 {[%emt 0:00:15]} axb4 {[%emt 0:02:08]} 25. Rxb4 {[%emt 0:00:15]} Rd3 {[%emt 0:00:07]} 26. Rc1 {[%emt 0:06:52]} Rxc3 {[%emt 0:00:31]} 27. Rxc3 {[%emt 0:00:04]} Nd5 {[%emt 0:00:03]} 28. axb5 {[%emt 0:00:27]} cxb5 {[%emt 0:03:46]} 29. Rcxc4 {[%emt 0:00:11]} bxc4 {[%emt 0:00:07]} 30. Rxc4 {[%emt 0:00:03]} g5 {[%emt 0:06:17]} 31. Rd4 {[%emt 0:04:19]} Nc7 {[%emt 0:00:45]} 32. f4 {[%emt 0:05:54]} gxf4 {[%emt 0:03:36]} 33. exf4 {[%emt 0:01:44]} Re1+ {[%emt 0:00:14]} 34. Kf2 {[%emt 0:03:31]} Rc1 {[%emt 0:00:01]} 35. f5 {[%emt 0:02:47]} Rxc5 {[%emt 0:00:07]} 36. Rxh4 {[%emt 0:00:04]} Rxf5+ {[%emt 0:00:08]} 37. Kg3 {[%emt 0:01:11]} Kg7 {[%emt 0:02:22]} 38. Ra4 {[%emt 0:01:39]} Ne6 {[%emt 0:00:10]} 39. Rb4 {[%emt 0:00:30]} Rd5 {[%emt 0:00:19]} 40. Ra4 {[%emt 0:02:06]} Kg6 {[%emt 0:00:15]} 41. Ra3 {[%emt 0:01:36]} Rd2 {[%emt 0:02:13]} 42. Rb3 {[%emt 0:02:21]} Nd4 {[%emt 0:00:27]} 43. Rb6+ {[%emt 0:00:31]} Kg5 {[%emt 0:00:35]} 44. h4+ {[%emt 0:01:46]} Kf5 {[%emt 0:00:38]} 45. Ra6 {[%emt 0:03:42]} Rd3+ {[%emt 0:01:29]} 46. Kh2 {[%emt 0:00:12]} Ne6 {[%emt 0:00:35]} 47. Ra7 {[%emt 0:01:19]} f6 {[%emt 0:00:47]} 48. Ra6 {[%emt 0:03:05]} Nf4 {[%emt 0:00:31]} 49. g3 {[%emt 0:04:04]} Rd2+ {[%emt 0:00:19]} 50. Kh1 {[%emt 0:00:32]} Nh5 {[%emt 0:00:14]} 51. Ra4 {[%emt 0:01:41]} Nxg3+ {[%emt 0:00:08]} 52. Kg1 {[%emt 0:00:02]} Rd4 {[%emt 0:01:26]} 53. Ra5+ {[%emt 0:01:29]} Kg4 {[%emt 0:00:05]} 54. Ra6 {[%emt 0:00:12]} Rd2 {[%emt 0:01:06]} 55. Rxf6 {[%emt 0:00:29]} Kh3 {[%emt 0:00:05]} 0-1

[Event "SixDays IM March 2024"]
[Site "Budapest"]
[Date "2024.03.30"]
[Round "1.2"]
[White "Advaitt Srikant Koduri"]
[Black "Horvath, David"]
[Result "0-1"]
[ECO "D02"]
[WhiteElo "2125"]
[BlackElo "2330"]
[Annotator "RC"]
[PlyCount "74"]
[EventDate "2024.03.26"]
[EventType "tourn"]
[EventCountry "HUN"]
[SourceTitle "playchess.com"]
[Source "ChessBase"]
[SourceQuality "1"]
[TimeControl "5400+30"]

1. Nf3 {[%emt 0:00:13]} Nf6 {[%emt 0:00:39]} 2. d4 {[%emt 0:00:11]} d5 {[%emt 0:00:08]} 3. Bf4 {[%emt 0:01:02]} c5 {[%emt 0:00:05]} 4. c3 {[%emt 0:00:06]} Nc6 {[%emt 0:00:04]} 5. e3 {[%emt 0:00:06]} Qb6 {[%emt 0:00:03]} 6. Qc2 {[%emt 0:00:10]} Nh5 {[%emt 0:01:43]} 7. Be5 {[%emt 0:03:19]} f6 {[%emt 0:01:56]} 8. Bg3 {[%emt 0:00:42]} cxd4 {[%emt 0:03:41]} 9. exd4 {[%emt 0:05:54]} e5 {[%emt 0:02:10]} 10. dxe5 {[%emt 0:03:28]} Nxg3 {[%emt 0:04:23]} 11. hxg3 {[%emt 0:00:14]} fxe5 {[%emt 0:00:08]} 12. Be2 {[%emt 0:05:40]} Bc5 {[%emt 0:25:32]} 13. O-O {[%emt 0:07:46]} e4 {[%emt 0:12:43]} 14. Nh2 {[%emt 0:27:11]} O-O {[%emt 0:04:25]} 15. Bh5 {[%emt 0:15:34]} Ne5 {[%emt 0:05:34]} 16. b4 {[%emt 0:08:00]} Bxf2+ {[%emt 0:01:42]} 17. Rxf2 {[%emt 0:01:45]} Nd3 {[%emt 0:00:03]} 18. Bf3 {[%emt 0:01:27]} Bf5 {[%emt 0:14:15]} 19. Bh5 {[%emt 0:06:42]} Bg6 {[%emt 0:06:12]} 20. Bf3 {[%emt 0:02:03]} exf3 {[%emt 0:01:47]} 21. Nxf3 {[%emt 0:00:57]} Rac8 {[%emt 0:01:26]} 22. a4 {[%emt 0:01:09]} Qxf2+ {[%emt 0:01:24]} 23. Qxf2 {[%emt 0:00:07]} Nxf2 {[%emt 0:00:05]} 24. Kxf2 {[%emt 0:00:06]} Bxb1 {[%emt 0:00:10]} 25. Rxb1 {[%emt 0:00:04]} Rxc3 {[%emt 0:00:08]} 26. Rd1 {[%emt 0:00:09]} Rd8 {[%emt 0:00:13]} 27. Rd4 {[%emt 0:01:57]} Rc4 {[%emt 0:00:45]} 28. Ke3 {[%emt 0:00:09]} Re8+ {[%emt 0:00:27]} 29. Kd3 {[%emt 0:00:38]} Rxd4+ {[%emt 0:00:05]} 30. Nxd4 {[%emt 0:02:08]} Re4 {[%emt 0:00:47]} 31. a5 {[%emt 0:00:52]} Kf7 {[%emt 0:00:20]} 32. b5 {[%emt 0:00:15]} b6 {[%emt 0:00:28]} 33. a6 {[%emt 0:00:15]} Rxd4+ {[%emt 0:00:06]} 34. Kxd4 {[%emt 0:00:05]} Ke6 {[%emt 0:00:03]} 35. g4 {[%emt 0:00:08]} h6 {[%emt 0:00:23]} 36. Ke3 {[%emt 0:00:46]} Ke5 {[%emt 0:00:06]} 37. g3 {[%emt 0:00:12]} d4+ {[%emt 0:00:07]} 0-1

[Event "SixDays IM March 2024"]
[Site "Budapest"]
[Date "2024.03.30"]
[Round "1.3"]
[White "Demeter, Dorina"]
[Black "Miszler, Levente"]
[Result "1/2-1/2"]
[ECO "A06"]
[WhiteElo "2296"]
[BlackElo "2287"]
[Annotator "RC"]
[PlyCount "99"]
[EventDate "2024.03.26"]
[EventType "tourn"]
[EventCountry "HUN"]
[SourceTitle "playchess.com"]
[Source "ChessBase"]
[SourceQuality "1"]
[TimeControl "5400+30"]

1. Nf3 {[%emt 0:00:04]} d5 {[%emt 0:00:14]} 2. e3 {[%emt 0:00:13]} Nc6 {[%emt 0:00:51]} 3. d4 {[%emt 0:03:22]} Bg4 {[%emt 0:00:28]} 4. Bb5 {[%emt 0:01:16]} Qd7 {[%emt 0:01:51]} 5. Nbd2 {[%emt 0:05:36]} a6 {[%emt 0:02:39]} 6. Bxc6 {[%emt 0:09:19]} Qxc6 {[%emt 0:01:26]} 7. c3 {[%emt 0:01:37]} f6 {[%emt 0:07:23]} 8. Qb3 {[%emt 0:05:10]} e6 {[%emt 0:02:45]} 9. O-O {[%emt 0:00:33]} Bd6 {[%emt 0:02:27]} 10. h3 {[%emt 0:07:39]} Bh5 {[%emt 0:02:27]} 11. Re1 {[%emt 0:06:01]} Ne7 {[%emt 0:08:44]} 12. a4 {[%emt 0:05:30]} e5 {[%emt 0:13:50]} 13. dxe5 {[%emt 0:04:57]} fxe5 {[%emt 0:00:25]} 14. e4 {[%emt 0:02:02]} O-O-O {[%emt 0:09:11]} 15. Ng5 {[%emt 0:10:44]} h6 {[%emt 0:05:39]} 16. exd5 {[%emt 0:01:15]} Nxd5 {[%emt 0:01:00]} 17. Nge4 {[%emt 0:00:38]} Nf4 {[%emt 0:02:52]} 18. Qc4 {[%emt 0:04:14]} Ne2+ {[%emt 0:16:12]} 19. Kh1 {[%emt 0:01:11]} Qxc4 {[%emt 0:02:46]} 20. Nxc4 {[%emt 0:00:24]} Nxc1 {[%emt 0:00:23]} 21. Raxc1 {[%emt 0:00:39]} Bf7 {[%emt 0:02:23]} 22. b3 {[%emt 0:08:51]} b5 {[%emt 0:03:32]} 23. axb5 {[%emt 0:03:22]} axb5 {[%emt 0:00:05]} 24. Ncxd6+ {[%emt 0:01:09]} cxd6 {[%emt 0:00:08]} 25. Ra1 {[%emt 0:01:05]} Bd5 {[%emt 0:04:57]} 26. Ra5 {[%emt 0:05:17]} Bc6 {[%emt 0:00:22]} 27. f3 {[%emt 0:00:41]} Kc7 {[%emt 0:01:21]} 28. Rea1 {[%emt 0:02:28]} Ra8 {[%emt 0:01:17]} 29. Ra7+ {[%emt 0:05:50]} Bb7 {[%emt 0:00:36]} 30. Ng3 {[%emt 0:01:46]} Rxa7 {[%emt 0:01:13]} 31. Rxa7 {[%emt 0:00:01]} Kb6 {[%emt 0:00:08]} 32. Ra1 {[%emt 0:00:10]} Rc8 {[%emt 0:00:44]} 33. Ne2 {[%emt 0:00:57]} d5 {[%emt 0:02:00]} 34. Kg1 {[%emt 0:00:25]} Ra8 {[%emt 0:02:07]} 35. Rxa8 {[%emt 0:00:08]} Bxa8 {[%emt 0:00:04]} 36. b4 {[%emt 0:00:18]} Bc6 {[%emt 0:00:54]} 37. Kf2 {[%emt 0:00:13]} Kc7 {[%emt 0:00:45]} 38. Ke3 {[%emt 0:00:18]} Kd6 {[%emt 0:00:19]} 39. f4 {[%emt 0:01:54]} e4 {[%emt 0:01:42]} 40. Kd4 {[%emt 0:00:51]} Bd7 {[%emt 0:00:27]} 41. Nc1 {[%emt 0:00:56]} Be8 {[%emt 0:00:44]} 42. Nb3 {[%emt 0:00:16]} h5 {[%emt 0:00:48]} 43. Nd2 {[%emt 0:00:54]} Bd7 {[%emt 0:00:17]} 44. Nf1 {[%emt 0:00:23]} Be6 {[%emt 0:00:51]} 45. Ne3 {[%emt 0:01:16]} g6 {[%emt 0:00:06]} 46. g3 {[%emt 0:00:48]} Bf7 {[%emt 0:00:33]} 47. h4 {[%emt 0:00:42]} Be6 {[%emt 0:00:16]} 48. Nd1 {[%emt 0:00:26]} Bg4 {[%emt 0:00:27]} 49. Ne3 {[%emt 0:00:24]} Be6 {[%emt 0:00:12]} 50. Nd1 {[%emt 0:00:32]} 1/2-1/2

[Event "SixDays IM March 2024"]
[Site "Budapest"]
[Date "2024.03.30"]
[Round "1.4"]
[White "Gu, Crystal Jiuzhou"]
[Black "Krizsany, Laszlo"]
[Result "0-1"]
[ECO "B00"]
[WhiteElo "2059"]
[BlackElo "2341"]
[Annotator "RC"]
[PlyCount "66"]
[EventDate "2024.03.26"]
[EventType "tourn"]
[EventCountry "HUN"]
[SourceTitle "playchess.com"]
[Source "ChessBase"]
[SourceQuality "1"]
[TimeControl "5400+30"]

1. e4 {[%emt 0:00:03]} b6 {[%emt 0:00:10]} 2. d4 {[%emt 0:00:19]} Bb7 {[%emt 0:00:05]} 3. Bd3 {[%emt 0:01:47]} e6 {[%emt 0:00:07]} 4. Nf3 {[%emt 0:01:37]} c5 {[%emt 0:00:13]} 5. d5 {[%emt 0:04:04]} Nf6 {[%emt 0:08:06]} 6. c4 {[%emt 0:13:06]} b5 {[%emt 0:04:40]} 7. Nc3 {[%emt 0:04:01]} b4 {[%emt 0:05:07]} 8. Ne2 {[%emt 0:01:18]} d6 {[%emt 0:00:41]} 9. b3 {[%emt 0:06:26]} Be7 {[%emt 0:06:42]} 10. Bb2 {[%emt 0:01:35]} e5 {[%emt 0:00:50]} 11. Nd2 {[%emt 0:04:50]} Nbd7 {[%emt 0:02:38]} 12. Ng3 {[%emt 0:02:26]} g6 {[%emt 0:02:43]} 13. Rf1 {[%emt 0:04:27]} h5 {[%emt 0:01:57]} 14. f4 {[%emt 0:05:58]} Ng4 {[%emt 0:02:04]} 15. Qe2 {[%emt 0:10:27]} Nxh2 {[%emt 0:04:04]} 16. Rh1 {[%emt 0:05:23]} Bh4 {[%emt 0:00:31]} 17. Qe3 {[%emt 0:04:16]} Ng4 {[%emt 0:03:16]} 18. Qf3 {[%emt 0:00:20]} exf4 {[%emt 0:04:59]} 19. Qxf4 {[%emt 0:11:24]} Nde5 {[%emt 0:05:22]} 20. Bxe5 {[%emt 0:02:25]} Nxe5 {[%emt 0:00:45]} 21. Be2 {[%emt 0:04:12]} Bg5 {[%emt 0:03:58]} 22. Qf2 {[%emt 0:01:48]} Qe7 {[%emt 0:01:37]} 23. Kd1 {[%emt 0:04:12]} Bc8 {[%emt 0:02:41]} 24. Kc2 {[%emt 0:02:08]} Qf6 {[%emt 0:03:44]} 25. Qxf6 {[%emt 0:01:20]} Bxf6 {[%emt 0:00:03]} 26. Raf1 {[%emt 0:00:12]} Ke7 {[%emt 0:01:11]} 27. Rf2 {[%emt 0:01:31]} a5 {[%emt 0:00:47]} 28. Bf3 {[%emt 0:01:39]} a4 {[%emt 0:00:36]} 29. Ne2 {[%emt 0:00:51]} axb3+ {[%emt 0:00:23]} 30. axb3 {[%emt 0:00:41]} Ra2+ {[%emt 0:00:08]} 31. Kd1 {[%emt 0:00:25]} Ra1+ {[%emt 0:00:22]} 32. Nc1 {[%emt 0:00:24]} Nd3 {[%emt 0:00:19]} 33. Rff1 {[%emt 0:00:36]} Rxc1+ {[%emt 0:00:16]} 0-1

[Event "SixDays IM March 2024"]
[Site "Budapest"]
[Date "2024.03.30"]
[Round "1.5"]
[White "Toth-Goczo, Melinda"]
[Black "Mouhamad, Joachim"]
[Result "0-1"]
[ECO "D35"]
[WhiteElo "2189"]
[BlackElo "2278"]
[Annotator "RC"]
[PlyCount "90"]
[EventDate "2024.03.26"]
[EventType "tourn"]
[EventCountry "HUN"]
[SourceTitle "playchess.com"]
[Source "ChessBase"]
[SourceQuality "1"]
[TimeControl "5400+30"]

1. d4 {[%emt 0:00:03]} d5 {[%emt 0:00:17]} 2. c4 {[%emt 0:00:08]} e6 {[%emt 0:00:13]} 3. Nc3 {[%emt 0:00:13]} Nf6 {[%emt 0:00:24]} 4. cxd5 {[%emt 0:01:12]} exd5 {[%emt 0:00:09]} 5. Bg5 {[%emt 0:00:05]} Be7 {[%emt 0:00:18]} 6. e3 {[%emt 0:01:59]} h6 {[%emt 0:00:20]} 7. Bh4 {[%emt 0:07:30]} Bg4 {[%emt 0:00:16]} 8. Nf3 {[%emt 0:36:47]} O-O {[%emt 0:00:20]} 9. h3 {[%emt 0:06:07]} Bxf3 {[%emt 0:00:13]} 10. Qxf3 {[%emt 0:00:04]} Nbd7 {[%emt 0:03:19]} 11. Bd3 {[%emt 0:05:05]} c6 {[%emt 0:00:20]} 12. O-O {[%emt 0:14:19]} Re8 {[%emt 0:00:18]} 13. Rab1 {[%emt 0:02:47]} a5 {[%emt 0:03:55]} 14. Bg3 {[%emt 0:03:46]} Nf8 {[%emt 0:00:24]} 15. Be5 {[%emt 0:06:21]} Ng6 {[%emt 0:17:37]} 16. Bxg6 {[%emt 0:04:15]} fxg6 {[%emt 0:00:04]} 17. a3 {[%emt 0:00:27]} Kh7 {[%emt 0:15:38]} 18. Rfc1 {[%emt 0:01:14]} Nd7 {[%emt 0:04:29]} 19. Bg3 {[%emt 0:01:52]} Nb6 {[%emt 0:00:58]} 20. Qd1 {[%emt 0:01:22]} Nc4 {[%emt 0:03:56]} 21. a4 {[%emt 0:02:07]} Bd6 {[%emt 0:03:05]} 22. Bxd6 {[%emt 0:00:12]} Nxd6 {[%emt 0:00:03]} 23. Qd3 {[%emt 0:00:17]} Qg5 {[%emt 0:02:28]} 24. b4 {[%emt 0:00:58]} axb4 {[%emt 0:00:14]} 25. Rxb4 {[%emt 0:00:01]} Re7 {[%emt 0:00:33]} 26. Rcb1 {[%emt 0:00:12]} Rf8 {[%emt 0:00:26]} 27. Ne2 {[%emt 0:01:37]} Rff7 {[%emt 0:06:36]} 28. Nf4 {[%emt 0:01:05]} Ne4 {[%emt 0:00:26]} 29. Qc2 {[%emt 0:01:07]} Qf5 {[%emt 0:02:09]} 30. R1b2 {[%emt 0:00:48]} Nd6 {[%emt 0:23:56]} 31. Qxf5 {[%emt 0:00:09]} gxf5 {[%emt 0:00:12]} 32. Nd3 {[%emt 0:00:15]} Nc4 {[%emt 0:00:47]} 33. Rb1 {[%emt 0:00:17]} g5 {[%emt 0:02:51]} 34. g3 {[%emt 0:00:24]} Kg7 {[%emt 0:00:35]} 35. Nc5 {[%emt 0:01:44]} Nd6 {[%emt 0:02:14]} 36. Nd3 {[%emt 0:00:14]} Kf6 {[%emt 0:00:39]} 37. Nc5 {[%emt 0:00:25]} f4 {[%emt 0:01:33]} 38. exf4 {[%emt 0:00:40]} gxf4 {[%emt 0:00:00]} 39. g4 {[%emt 0:00:04]} h5 {[%emt 0:00:00]} 40. Kg2 {[%emt 0:00:12]} Kg5 {[%emt 0:00:29]} 41. gxh5 {[%emt 0:01:50]} Kxh5 {[%emt 0:01:38]} 42. Nd3 {[%emt 0:00:28]} f3+ {[%emt 0:01:43]} 43. Kf1 {[%emt 0:00:17]} Nc4 {[%emt 0:00:48]} 44. Rd1 {[%emt 0:00:41]} Re4 {[%emt 0:02:41]} 45. Re1 {[%emt 0:00:46]} Rxd4 {[%emt 0:00:41]} 0-1

[Event "SixDays IM March 2024"]
[Site "Budapest"]
[Date "2024.03.31"]
[Round "2.1"]
[White "Hesham, Abdelrahman"]
[Black "Mouhamad, Joachim"]
[Result "1/2-1/2"]
[ECO "D35"]
[WhiteElo "2366"]
[BlackElo "2278"]
[Annotator "RC"]
[PlyCount "98"]
[EventDate "2024.03.26"]
[EventType "tourn"]
[EventCountry "HUN"]
[SourceTitle "playchess.com"]
[Source "ChessBase"]
[SourceQuality "1"]
[TimeControl "5400+30"]

1. d4 {[%emt 0:06:46]} Nf6 {[%emt 0:01:50]} 2. c4 {[%emt 0:00:39]} e6 {[%emt 0:00:18]} 3. Nc3 {[%emt 0:00:09]} d5 {[%emt 0:00:23]} 4. cxd5 {[%emt 0:00:11]} exd5 {[%emt 0:00:11]} 5. Bg5 {[%emt 0:00:08]} Be7 {[%emt 0:00:29]} 6. e3 {[%emt 0:00:07]} h6 {[%emt 0:00:26]} 7. Bh4 {[%emt 0:00:07]} Bg4 {[%emt 0:00:20]} 8. Qc2 {[%emt 0:00:06]} O-O {[%emt 0:00:28]} 9. h3 {[%emt 0:00:07]} Be6 {[%emt 0:00:08]} 10. Nf3 {[%emt 0:02:03]} Nbd7 {[%emt 0:01:55]} 11. Bd3 {[%emt 0:07:21]} c6 {[%emt 0:05:38]} 12. Bg3 {[%emt 0:10:59]} c5 {[%emt 0:07:50]} 13. dxc5 {[%emt 0:06:29]} Nxc5 {[%emt 0:00:12]} 14. Be5 {[%emt 0:00:37]} Nxd3+ {[%emt 0:02:57]} 15. Qxd3 {[%emt 0:00:09]} Nd7 {[%emt 0:14:54]} 16. Bd4 {[%emt 0:00:13]} Rc8 {[%emt 0:05:28]} 17. O-O {[%emt 0:00:21]} Nc5 {[%emt 0:01:49]} 18. Qe2 {[%emt 0:07:34]} Qa5 {[%emt 0:00:41]} 19. Rfd1 {[%emt 0:03:01]} Rfd8 {[%emt 0:01:07]} 20. Ne5 {[%emt 0:06:17]} Bd6 {[%emt 0:06:02]} 21. Qh5 {[%emt 0:14:16]} Bf8 {[%emt 0:13:38]} 22. Nd3 {[%emt 0:14:32]} Nxd3 {[%emt 0:01:22]} 23. Rxd3 {[%emt 0:00:02]} b5 {[%emt 0:05:15]} 24. f4 {[%emt 0:05:03]} f6 {[%emt 0:05:18]} 25. f5 {[%emt 0:07:24]} Bf7 {[%emt 0:00:07]} 26. Qg4 {[%emt 0:02:39]} Qa6 {[%emt 0:04:05]} 27. Rd2 {[%emt 0:00:40]} Re8 {[%emt 0:02:54]} 28. Rf1 {[%emt 0:01:01]} b4 {[%emt 0:01:09]} 29. Ne2 {[%emt 0:00:01]} Re4 {[%emt 0:00:23]} 30. Nf4 {[%emt 0:00:06]} Bc5 {[%emt 0:04:49]} 31. b3 {[%emt 0:02:53]} Rxe3 {[%emt 0:04:51]} 32. Bxc5 {[%emt 0:00:16]} Rxc5 {[%emt 0:00:02]} 33. Ne2 {[%emt 0:00:01]} Re4 {[%emt 0:00:45]} 34. Rf4 {[%emt 0:00:11]} Qb6 {[%emt 0:01:37]} 35. Kh1 {[%emt 0:01:21]} Rc1+ {[%emt 0:02:39]} 36. Kh2 {[%emt 0:00:01]} Qc7 {[%emt 0:01:37]} 37. Qg3 {[%emt 0:01:04]} Rc2 {[%emt 0:03:22]} 38. Rxe4 {[%emt 0:01:04]} Qxg3+ {[%emt 0:00:10]} 39. Nxg3 {[%emt 0:00:25]} Rxd2 {[%emt 0:00:09]} 40. Rxb4 {[%emt 0:00:22]} Rxa2 {[%emt 0:00:52]} 41. Rb8+ {[%emt 0:00:07]} Kh7 {[%emt 0:00:08]} 42. Rf8 {[%emt 0:03:19]} Bg8 {[%emt 0:00:27]} 43. Nh5 {[%emt 0:00:00]} Rf2 {[%emt 0:00:57]} 44. Rd8 {[%emt 0:01:21]} Rxf5 {[%emt 0:00:29]} 45. g4 {[%emt 0:00:01]} Rg5 {[%emt 0:01:19]} 46. Rd7 {[%emt 0:00:10]} d4 {[%emt 0:01:13]} 47. Nxf6+ {[%emt 0:01:39]} Kh8 {[%emt 0:00:02]} 48. Nxg8 {[%emt 0:00:34]} Kxg8 {[%emt 0:00:13]} 49. Rxd4 {[%emt 0:00:05]} Rb5 {[%emt 0:00:22]} 1/2-1/2

[Event "SixDays IM March 2024"]
[Site "Budapest"]
[Date "2024.03.31"]
[Round "2.2"]
[White "Krizsany, Laszlo"]
[Black "Toth-Goczo, Melinda"]
[Result "1/2-1/2"]
[ECO "E73"]
[WhiteElo "2341"]
[BlackElo "2189"]
[Annotator "RC"]
[PlyCount "39"]
[EventDate "2024.03.26"]
[EventType "tourn"]
[EventCountry "HUN"]
[SourceTitle "playchess.com"]
[Source "ChessBase"]
[SourceQuality "1"]
[TimeControl "5400+30"]

1. d4 {[%emt 0:01:20]} Nf6 {[%emt 0:02:00]} 2. c4 {[%emt 0:03:33]} g6 {[%emt 0:00:25]} 3. Nc3 {[%emt 0:00:13]} Bg7 {[%emt 0:00:27]} 4. e4 {[%emt 0:00:14]} d6 {[%emt 0:00:17]} 5. Be2 {[%emt 0:00:21]} O-O {[%emt 0:00:25]} 6. Bg5 {[%emt 0:00:13]} c5 {[%emt 0:00:49]} 7. d5 {[%emt 0:00:17]} e6 {[%emt 0:00:55]} 8. Qd2 {[%emt 0:02:38]} exd5 {[%emt 0:01:02]} 9. exd5 {[%emt 0:00:22]} Qb6 {[%emt 0:01:06]} 10. Nf3 {[%emt 0:11:47]} Bf5 {[%emt 0:01:43]} 11. Rd1 {[%emt 0:10:52]} Ne4 {[%emt 0:05:26]} 12. Nxe4 {[%emt 0:00:37]} Bxe4 {[%emt 0:00:05]} 13. b3 {[%emt 0:01:47]} Bxf3 {[%emt 0:02:41]} 14. Bxf3 {[%emt 0:02:06]} Re8+ {[%emt 0:02:58]} 15. Be2 {[%emt 0:02:08]} Qb4 {[%emt 0:07:21]} 16. O-O {[%emt 0:01:55]} Qxd2 {[%emt 0:15:59]} 17. Rxd2 {[%emt 0:00:12]} Nd7 {[%emt 0:03:28]} 18. Rb1 {[%emt 0:05:00]} Bf6 {[%emt 0:05:18]} 19. Be3 {[%emt 0:02:39]} a5 {[%emt 0:03:49]} 20. a4 {[%emt 0:01:47]} 1/2-1/2

[Event "SixDays IM March 2024"]
[Site "Budapest"]
[Date "2024.03.31"]
[Round "2.3"]
[White "Miszler, Levente"]
[Black "Gu, Crystal Jiuzhou"]
[Result "1-0"]
[ECO "D17"]
[WhiteElo "2287"]
[BlackElo "2059"]
[Annotator "RC"]
[PlyCount "73"]
[EventDate "2024.03.26"]
[EventType "tourn"]
[EventCountry "HUN"]
[SourceTitle "playchess.com"]
[Source "ChessBase"]
[SourceQuality "1"]
[TimeControl "5400+30"]

1. d4 {[%emt 0:00:17]} d5 {[%emt 0:00:07]} 2. c4 {[%emt 0:00:05]} c6 {[%emt 0:00:03]} 3. Nf3 {[%emt 0:00:04]} Nf6 {[%emt 0:00:22]} 4. Nc3 {[%emt 0:00:06]} dxc4 {[%emt 0:00:45]} 5. a4 {[%emt 0:00:06]} Bf5 {[%emt 0:00:14]} 6. Nh4 {[%emt 0:00:16]} e6 {[%emt 0:00:28]} 7. Nxf5 {[%emt 0:00:14]} exf5 {[%emt 0:00:02]} 8. e3 {[%emt 0:00:11]} Nbd7 {[%emt 0:01:28]} 9. Bxc4 {[%emt 0:00:15]} Nb6 {[%emt 0:05:28]} 10. Bd3 {[%emt 0:01:32]} Qd7 {[%emt 0:01:46]} 11. O-O {[%emt 0:01:59]} Bd6 12. f3 {[%emt 0:14:37]} Qc7 {[%emt 0:11:55]} 13. Bxf5 {[%emt 0:06:24]} Bxh2+ {[%emt 0:08:16]} 14. Kh1 {[%emt 0:00:16]} Nh5 {[%emt 0:09:11]} 15. f4 {[%emt 0:04:17]} Ng3+ {[%emt 0:05:32]} 16. Kxh2 {[%emt 0:00:09]} Nxf5 {[%emt 0:02:35]} 17. e4 {[%emt 0:04:11]} Ne7 {[%emt 0:04:21]} 18. Kg1 {[%emt 0:06:58]} Rd8 {[%emt 0:05:48]} 19. b3 {[%emt 0:10:01]} a5 {[%emt 0:03:56]} 20. f5 {[%emt 0:02:48]} Qd7 {[%emt 0:06:14]} 21. Be3 {[%emt 0:01:07]} Nbc8 {[%emt 0:08:14]} 22. Qf3 {[%emt 0:04:28]} Nd6 {[%emt 0:06:21]} 23. Ne2 {[%emt 0:08:45]} Rb8 {[%emt 0:05:30]} 24. Ng3 {[%emt 0:02:09]} g6 {[%emt 0:05:39]} 25. f6 {[%emt 0:05:59]} Ng8 {[%emt 0:03:16]} 26. e5 {[%emt 0:02:48]} Nc8 {[%emt 0:01:27]} 27. Ne4 {[%emt 0:02:03]} Nb6 {[%emt 0:02:20]} 28. Nd6+ {[%emt 0:02:57]} Kd8 {[%emt 0:02:25]} 29. Bd2 {[%emt 0:00:36]} Ra8 {[%emt 0:00:24]} 30. Rac1 {[%emt 0:00:34]} Nd5 {[%emt 0:00:21]} 31. Rc5 {[%emt 0:00:49]} b6 {[%emt 0:00:34]} 32. Rxd5 {[%emt 0:00:12]} cxd5 {[%emt 0:00:19]} 33. Qxd5 {[%emt 0:00:11]} Rb8 {[%emt 0:00:50]} 34. Nxf7+ {[%emt 0:00:32]} Ke8 {[%emt 0:00:26]} 35. Nd6+ {[%emt 0:00:20]} Kd8 {[%emt 0:00:33]} 36. e6 {[%emt 0:00:14]} Qc7 {[%emt 0:00:24]} 37. f7 {[%emt 0:00:17]} 1-0